[Event "*** SCC Grand Prix: Titled Tuesday Blitz"]
[Site "Chess.com"]
[Date "2020.06.09"]
[Round "2"]
[White "SilviusTiberius"]
[Black "Ruchess27"]
[Result "0-1"]
[WhiteElo "2463"]
[BlackElo "2312"]
[TimeControl "180+1"]
[EndTime "9:19:21 PDT"]
[Termination "Ruchess27 won by checkmate"]

1. e4 {[%clk 0:03:00.9]} 1... e5 {[%clk 0:02:58.8]} 2. Nf3 {[%clk 0:03:01.1]}
2... Nc6 {[%clk 0:02:58.6]} 3. Bb5 {[%clk 0:03:00.8]} 3... a6 {[%clk 0:02:58.6]}
4. Ba4 {[%clk 0:03:01.1]} 4... Nf6 {[%clk 0:02:59.1]} 5. O-O {[%clk 0:03:01.4]}
5... Be7 {[%clk 0:02:58.4]} 6. Re1 {[%clk 0:03:01.5]} 6... b5 {[%clk 0:02:59]}
7. Bb3 {[%clk 0:03:01.5]} 7... O-O {[%clk 0:02:59]} 8. a4 {[%clk 0:03:00.5]}
8... Bb7 {[%clk 0:02:53.4]} 9. d4 {[%clk 0:02:56.2]} 9... d6 {[%clk 0:02:44]}
10. Nc3 {[%clk 0:02:48.4]} 10... b4 {[%clk 0:02:28.1]} 11. Nd5 {[%clk
0:02:47.7]} 11... Re8 {[%clk 0:02:20.7]} 12. dxe5 {[%clk 0:02:45.4]} 12... Nxe5
{[%clk 0:02:17.9]} 13. Nxe5 {[%clk 0:02:43.8]} 13... dxe5 {[%clk 0:02:16.3]} 14.
Nxe7+ {[%clk 0:02:43.1]} 14... Qxe7 {[%clk 0:02:10.9]} 15. Qf3 {[%clk
0:02:39.8]} 15... h6 {[%clk 0:01:55.9]} 16. a5 {[%clk 0:02:34.6]} 16... Rad8
{[%clk 0:01:52.3]} 17. Ba4 {[%clk 0:02:27.8]} 17... Rf8 {[%clk 0:01:40.5]} 18.
h3 {[%clk 0:01:56.1]} 18... Nxe4 {[%clk 0:01:27.6]} 19. Rxe4 {[%clk 0:01:51.6]}
19... f5 {[%clk 0:01:14.9]} 20. Qb3+ {[%clk 0:00:47.8]} 20... Bd5 {[%clk
0:01:12.5]} 21. Qxb4 {[%clk 0:00:47.9]} 21... c5 {[%clk 0:01:07]} 22. Rxe5
{[%clk 0:00:46.6]} 22... Qxe5 {[%clk 0:01:04.5]} 23. Qxc5 {[%clk 0:00:47.2]}
23... Qe4 {[%clk 0:00:39.3]} 24. f3 {[%clk 0:00:42.8]} 24... Qe1+ {[%clk
0:00:38.1]} 25. Kh2 {[%clk 0:00:42.4]} 25... Bxf3 {[%clk 0:00:26.8]} 26. Bb3+
{[%clk 0:00:29.5]} 26... Kh8 {[%clk 0:00:23.4]} 27. Bxh6 {[%clk 0:00:24.2]}
27... Qe2 {[%clk 0:00:17.4]} 28. Rg1 {[%clk 0:00:12.8]} 28... gxh6 {[%clk
0:00:16.8]} 29. Qc3+ {[%clk 0:00:11.8]} 29... Kh7 {[%clk 0:00:15.9]} 30. Qxf3
{[%clk 0:00:11.3]} 30... Qxf3 {[%clk 0:00:15.9]} 31. gxf3 {[%clk 0:00:12.2]}
31... Rd2+ {[%clk 0:00:15.7]} 32. Rg2 {[%clk 0:00:12]} 32... Rfd8 {[%clk
0:00:14.6]} 33. Rxd2 {[%clk 0:00:10.3]} 33... Rxd2+ {[%clk 0:00:15.5]} 34. Kg3
{[%clk 0:00:11.2]} 34... Kg6 {[%clk 0:00:14.8]} 35. Kf4 {[%clk 0:00:11.4]} 35...
Kf6 {[%clk 0:00:14.8]} 36. h4 {[%clk 0:00:10.8]} 36... Rd4+ {[%clk 0:00:14.5]}
37. Kg3 {[%clk 0:00:09.7]} 37... Ke5 {[%clk 0:00:14.6]} 38. c3 {[%clk 0:00:09]}
38... Rd2 {[%clk 0:00:14.3]} 39. Bc4 {[%clk 0:00:08.9]} 39... Rxb2 {[%clk
0:00:13.7]} 40. Bxa6 {[%clk 0:00:09.1]} 40... Ra2 {[%clk 0:00:14.1]} 41. Bc8
{[%clk 0:00:09.3]} 41... Rxa5 {[%clk 0:00:14.2]} 42. h5 {[%clk 0:00:08.8]} 42...
Rc5 {[%clk 0:00:13.9]} 43. Bd7 {[%clk 0:00:08.5]} 43... Rxc3 {[%clk 0:00:13.8]}
44. Be8 {[%clk 0:00:09.1]} 44... Ra3 {[%clk 0:00:12.9]} 45. Bg6 {[%clk 0:00:10]}
45... Kf6 {[%clk 0:00:12.3]} 46. Bh7 {[%clk 0:00:09.9]} 46... Kg5 {[%clk
0:00:12.2]} 47. Bg6 {[%clk 0:00:10.8]} 47... f4+ {[%clk 0:00:11.9]} 48. Kh3
{[%clk 0:00:11.3]} 48... Rxf3+ {[%clk 0:00:11.2]} 49. Kg2 {[%clk 0:00:12.2]}
49... Rg3+ {[%clk 0:00:10.9]} 50. Kf2 {[%clk 0:00:13.1]} 50... Ra3 {[%clk
0:00:10.9]} 51. Kg2 {[%clk 0:00:12.5]} 51... Kg4 {[%clk 0:00:09.7]} 52. Kh2
{[%clk 0:00:11.6]} 52... Ra2+ {[%clk 0:00:08.7]} 53. Kg1 {[%clk 0:00:12.1]}
53... Kg3 {[%clk 0:00:08.9]} 54. Bf7 {[%clk 0:00:12.5]} 54... Ra1# {[%clk
0:00:08.6]} 0-1

[Event "*** SCC Grand Prix: Titled Tuesday Blitz"]
[Site "Chess.com"]
[Date "2020.06.09"]
[Round "2"]
[White "davidkalashian"]
[Black "Salem-AR"]
[Result "0-1"]
[WhiteElo "2606"]
[BlackElo "2979"]
[TimeControl "180+1"]
[EndTime "9:19:22 PDT"]
[Termination "Salem-AR won by resignation"]

1. d4 {[%clk 0:03:00.9]} 1... Nf6 {[%clk 0:02:59.6]} 2. c4 {[%clk 0:03:00]} 2...
g6 {[%clk 0:03:00.2]} 3. Nc3 {[%clk 0:02:59.5]} 3... Bg7 {[%clk 0:03:00.7]} 4.
e4 {[%clk 0:02:59]} 4... O-O {[%clk 0:03:01.4]} 5. Be2 {[%clk 0:02:58.7]} 5...
d6 {[%clk 0:03:01.9]} 6. Bg5 {[%clk 0:02:58.6]} 6... Na6 {[%clk 0:03:00.9]} 7.
Qd2 {[%clk 0:02:57.5]} 7... e5 {[%clk 0:02:56.3]} 8. d5 {[%clk 0:02:56.7]} 8...
Qe8 {[%clk 0:02:44.9]} 9. f3 {[%clk 0:02:50.4]} 9... Nh5 {[%clk 0:02:42.4]} 10.
Bd3 {[%clk 0:02:08.3]} 10... Nf4 {[%clk 0:02:14.3]} 11. g3 {[%clk 0:02:00.7]}
11... Nxd3+ {[%clk 0:02:10.5]} 12. Qxd3 {[%clk 0:02:01.6]} 12... f5 {[%clk
0:02:03.9]} 13. Bd2 {[%clk 0:01:57.2]} 13... Nb4 {[%clk 0:02:01.5]} 14. Qb1
{[%clk 0:01:54.9]} 14... fxe4 {[%clk 0:01:58.4]} 15. Nxe4 {[%clk 0:01:46.9]}
15... a5 {[%clk 0:01:58.6]} 16. g4 {[%clk 0:01:27.8]} 16... b5 {[%clk 0:01:48]}
17. a3 {[%clk 0:01:21.3]} 17... Na6 {[%clk 0:01:48.3]} 18. Qc2 {[%clk
0:01:19.5]} 18... bxc4 {[%clk 0:01:41.3]} 19. Qxc4 {[%clk 0:01:15.3]} 19... Bd7
{[%clk 0:01:24.6]} 20. h4 {[%clk 0:01:08.9]} 20... Bb5 {[%clk 0:01:14]} 21. Qc2
{[%clk 0:01:08.7]} 21... Nc5 {[%clk 0:01:11.2]} 22. Nxc5 {[%clk 0:01:04.5]}
22... dxc5 {[%clk 0:01:12.1]} 23. Qe4 {[%clk 0:01:04]} 23... c6 {[%clk
0:00:36.3]} 24. h5 {[%clk 0:00:43.7]} 24... cxd5 {[%clk 0:00:30.5]} 25. Qxd5+
{[%clk 0:00:44.6]} 25... Qf7 {[%clk 0:00:28]} 26. Qe4 {[%clk 0:00:43.6]} 26...
Rad8 {[%clk 0:00:26]} 27. hxg6 {[%clk 0:00:32.9]} 27... Qxg6 {[%clk 0:00:26.7]}
28. Qxg6 {[%clk 0:00:32]} 28... hxg6 {[%clk 0:00:27.6]} 29. Bxa5 {[%clk
0:00:30.7]} 29... Rd3 {[%clk 0:00:24.4]} 30. Bc3 {[%clk 0:00:31]} 30... e4
{[%clk 0:00:20.5]} 31. Bxg7 {[%clk 0:00:29.5]} 31... Kxg7 {[%clk 0:00:20.4]} 32.
fxe4 {[%clk 0:00:24.9]} 32... Rd4 {[%clk 0:00:14.6]} 33. Nh3 {[%clk 0:00:17.5]}
33... Rxe4+ {[%clk 0:00:14]} 34. Kd2 {[%clk 0:00:17.7]} 34... Re2+ {[%clk
0:00:09.2]} 35. Kc1 {[%clk 0:00:14.6]} 35... Bd3 {[%clk 0:00:09]} 36. Ng5 {[%clk
0:00:12]} 36... Rff2 {[%clk 0:00:09.2]} 37. Nh3 {[%clk 0:00:05.4]} 37... Rc2+
{[%clk 0:00:08.6]} 38. Kd1 {[%clk 0:00:06]} 38... Rfd2+ {[%clk 0:00:08.8]} 39.
Ke1 {[%clk 0:00:06.6]} 39... Re2+ {[%clk 0:00:09]} 40. Kd1 {[%clk 0:00:07.1]}
40... Red2+ {[%clk 0:00:05.5]} 41. Ke1 {[%clk 0:00:07.1]} 41... Rxb2 {[%clk
0:00:05.6]} 42. Nf4 {[%clk 0:00:06.2]} 42... c4 {[%clk 0:00:06]} 43. Rc1 {[%clk
0:00:03.3]} 43... Be4 {[%clk 0:00:04.2]} 44. Rh3 {[%clk 0:00:02.5]} 44... Rbc2
{[%clk 0:00:02.3]} 45. Rxc2 {[%clk 0:00:02.4]} 45... Rxc2 {[%clk 0:00:02.6]} 46.
Re3 {[%clk 0:00:02.7]} 46... Bc6 {[%clk 0:00:01.8]} 47. Ne2 {[%clk 0:00:03.1]}
47... Ra2 {[%clk 0:00:01.6]} 48. Nc3 {[%clk 0:00:04]} 48... Ra1+ {[%clk
0:00:01.6]} 49. Kd2 {[%clk 0:00:04.9]} 49... Rxa3 {[%clk 0:00:02.5]} 50. Kc1
{[%clk 0:00:05.3]} 50... Ra6 {[%clk 0:00:02.3]} 51. Kb2 {[%clk 0:00:06.2]} 51...
Bd7 {[%clk 0:00:02.7]} 52. Kc2 {[%clk 0:00:07.1]} 52... Bxg4 {[%clk 0:00:03.1]}
53. Re4 {[%clk 0:00:08]} 53... Bf5 {[%clk 0:00:03.8]} 54. Kd2 {[%clk 0:00:07.6]}
54... Bxe4 {[%clk 0:00:04.4]} 55. Nxe4 {[%clk 0:00:08.5]} 55... Re6 {[%clk
0:00:04.8]} 56. Kc3 {[%clk 0:00:08.9]} 56... Rxe4 {[%clk 0:00:05]} 0-1

[Event "*** SCC Grand Prix: Titled Tuesday Blitz"]
[Site "Chess.com"]
[Date "2020.06.09"]
[Round "2"]
[White "HanSchut"]
[Black "vanyakuba"]
[Result "0-1"]
[WhiteElo "2199"]
[BlackElo "2442"]
[TimeControl "180+1"]
[EndTime "9:19:22 PDT"]
[Termination "vanyakuba won by resignation"]

1. e3 {[%clk 0:03:00.9]} 1... d5 {[%clk 0:02:59.8]} 2. f4 {[%clk 0:02:56.3]}
2... g6 {[%clk 0:02:59.7]} 3. Nf3 {[%clk 0:02:56.7]} 3... Bg7 {[%clk 0:03:00.2]}
4. Be2 {[%clk 0:02:55.2]} 4... Nh6 {[%clk 0:02:59.9]} 5. O-O {[%clk 0:02:53.3]}
5... O-O {[%clk 0:03:00.2]} 6. Ne5 {[%clk 0:02:47.4]} 6... c5 {[%clk 0:02:56.8]}
7. b3 {[%clk 0:02:44.4]} 7... Nd7 {[%clk 0:02:53.9]} 8. Bb2 {[%clk 0:02:44.2]}
8... Qc7 {[%clk 0:02:37]} 9. d4 {[%clk 0:02:32.8]} 9... Nf5 {[%clk 0:02:32.2]}
10. Qd2 {[%clk 0:02:24.5]} 10... e6 {[%clk 0:02:03.9]} 11. c4 {[%clk 0:02:03.1]}
11... Nf6 {[%clk 0:01:22.5]} 12. Nc3 {[%clk 0:01:54.9]} 12... dxc4 {[%clk
0:01:13.5]} 13. Bxc4 {[%clk 0:01:45.7]} 13... cxd4 {[%clk 0:01:12.3]} 14. exd4
{[%clk 0:01:43.6]} 14... Rd8 {[%clk 0:00:57.4]} 15. Nb5 {[%clk 0:01:34.8]} 15...
Qb6 {[%clk 0:00:57.2]} 16. g4 {[%clk 0:01:28.2]} 16... Nd6 {[%clk 0:00:45]} 17.
Nxd6 {[%clk 0:01:22.4]} 17... Qxd6 {[%clk 0:00:45.8]} 18. Rad1 {[%clk
0:01:00.4]} 18... a6 {[%clk 0:00:45.5]} 19. Qg2 {[%clk 0:00:53.2]} 19... Nd5
{[%clk 0:00:27]} 20. Qf3 {[%clk 0:00:39.1]} 20... b5 {[%clk 0:00:26]} 21. Bxd5
{[%clk 0:00:34.8]} 21... Qxd5 {[%clk 0:00:26.9]} 22. Nc6 {[%clk 0:00:20.2]}
22... Qxf3 {[%clk 0:00:21.8]} 23. Rxf3 {[%clk 0:00:21.1]} 23... Bb7 {[%clk
0:00:14.4]} 24. Rc3 {[%clk 0:00:13.5]} 24... Re8 {[%clk 0:00:14.5]} 25. Ne5
{[%clk 0:00:12.2]} 25... Rac8 {[%clk 0:00:11.4]} 26. Rdc1 {[%clk 0:00:12.3]}
26... Rxc3 {[%clk 0:00:11.8]} 27. Rxc3 {[%clk 0:00:12.7]} 27... Rc8 {[%clk
0:00:12.2]} 28. Rxc8+ {[%clk 0:00:12.6]} 28... Bxc8 {[%clk 0:00:13.1]} 29. Kf2
{[%clk 0:00:13.1]} 29... Bb7 {[%clk 0:00:12.8]} 30. Ke3 {[%clk 0:00:13.6]} 30...
Bf8 {[%clk 0:00:10.8]} 31. Nd7 {[%clk 0:00:13.7]} 31... Bd6 {[%clk 0:00:09]} 32.
Nc5 {[%clk 0:00:13]} 32... Bc8 {[%clk 0:00:09.4]} 33. h3 {[%clk 0:00:11.7]}
33... Kf8 {[%clk 0:00:09.5]} 34. Ne4 {[%clk 0:00:11.8]} 34... Be7 {[%clk
0:00:09]} 35. Nc5 {[%clk 0:00:10.4]} 35... Ke8 {[%clk 0:00:08.8]} 36. Kd3 {[%clk
0:00:09.8]} 36... Kd8 {[%clk 0:00:08.2]} 37. b4 {[%clk 0:00:10.3]} 37... Kc7
{[%clk 0:00:08.3]} 38. Ne4 {[%clk 0:00:10.6]} 38... Bb7 {[%clk 0:00:07]} 39. Ke3
{[%clk 0:00:10]} 39... Bxe4 {[%clk 0:00:05.4]} 40. Kxe4 {[%clk 0:00:10.4]} 40...
Kc6 {[%clk 0:00:06]} 41. a3 {[%clk 0:00:10.3]} 41... Bd6 {[%clk 0:00:05.6]} 42.
Bc1 {[%clk 0:00:09.8]} 42... f5+ {[%clk 0:00:06]} 43. Kd3 {[%clk 0:00:09]} 43...
Kd5 {[%clk 0:00:05.9]} 44. Be3 {[%clk 0:00:08.5]} 44... Bf8 {[%clk 0:00:06.2]}
45. g5 {[%clk 0:00:08.5]} 45... h6 {[%clk 0:00:05.9]} 46. h4 {[%clk 0:00:09]}
46... hxg5 {[%clk 0:00:06.3]} 47. hxg5 {[%clk 0:00:09.9]} 47... Be7 {[%clk
0:00:06.6]} 48. Bd2 {[%clk 0:00:09.7]} 48... Bd8 {[%clk 0:00:06.4]} 49. Be3
{[%clk 0:00:10.2]} 49... Bc7 {[%clk 0:00:07]} 50. Bd2 {[%clk 0:00:10.6]} 50...
Bd6 {[%clk 0:00:07.6]} 51. Be3 {[%clk 0:00:10.1]} 51... a5 {[%clk 0:00:07.3]}
52. Bd2 {[%clk 0:00:08.7]} 52... axb4 {[%clk 0:00:07.3]} 53. axb4 {[%clk
0:00:09.6]} 53... Be7 {[%clk 0:00:07.6]} 54. Bc3 {[%clk 0:00:08.3]} 54... Bd8
{[%clk 0:00:08]} 55. Be1 {[%clk 0:00:06.7]} 55... Bb6 {[%clk 0:00:07.9]} 56. Bc3
{[%clk 0:00:06.1]} 56... Bc7 {[%clk 0:00:08.3]} 57. Bd2 {[%clk 0:00:06]} 57...
Bd6 {[%clk 0:00:08.8]} 58. Bc3 {[%clk 0:00:05.8]} 58... Bxf4 {[%clk 0:00:08.6]}
0-1

[Event "*** SCC Grand Prix: Titled Tuesday Blitz"]
[Site "Chess.com"]
[Date "2020.06.09"]
[Round "2"]
[White "olksuna"]
[Black "Colchonero64"]
[Result "0-1"]
[WhiteElo "2610"]
[BlackElo "2990"]
[TimeControl "180+1"]
[EndTime "9:19:25 PDT"]
[Termination "Colchonero64 won by resignation"]

1. c4 {[%clk 0:03:00.9]} 1... Nf6 {[%clk 0:02:59.3]} 2. Nc3 {[%clk 0:03:00.9]}
2... g6 {[%clk 0:02:59.5]} 3. d4 {[%clk 0:02:59.9]} 3... Bg7 {[%clk 0:02:59.6]}
4. e4 {[%clk 0:02:59.7]} 4... O-O {[%clk 0:02:58.9]} 5. Be2 {[%clk 0:03:00.2]}
5... d6 {[%clk 0:02:58.8]} 6. Bg5 {[%clk 0:03:00.3]} 6... c5 {[%clk 0:02:44.7]}
7. d5 {[%clk 0:03:00]} 7... h6 {[%clk 0:02:44.6]} 8. Bf4 {[%clk 0:02:59.2]} 8...
b5 {[%clk 0:02:26.7]} 9. cxb5 {[%clk 0:02:57.7]} 9... a6 {[%clk 0:02:27.2]} 10.
a4 {[%clk 0:02:57.4]} 10... Nbd7 {[%clk 0:02:20.2]} 11. Nf3 {[%clk 0:02:45.7]}
11... g5 {[%clk 0:02:16]} 12. Bd2 {[%clk 0:02:39]} 12... axb5 {[%clk 0:02:07.6]}
13. Bxb5 {[%clk 0:02:37]} 13... Ne8 {[%clk 0:01:57.5]} 14. O-O {[%clk
0:02:28.2]} 14... Nc7 {[%clk 0:01:57.5]} 15. Bc6 {[%clk 0:02:24.6]} 15... Rb8
{[%clk 0:01:56.8]} 16. Qc2 {[%clk 0:02:15]} 16... Ba6 {[%clk 0:01:54.9]} 17.
Rfe1 {[%clk 0:02:09.6]} 17... g4 {[%clk 0:01:55]} 18. Nh4 {[%clk 0:02:01.4]}
18... Ne5 {[%clk 0:01:54.9]} 19. Nf5 {[%clk 0:01:57.9]} 19... Nd3 {[%clk
0:01:48.9]} 20. Nxg7 {[%clk 0:01:56.6]} 20... Kxg7 {[%clk 0:01:43.4]} 21. Nb5
{[%clk 0:01:37.3]} 21... Nxe1 {[%clk 0:01:40.8]} 22. Bc3+ {[%clk 0:01:28.7]}
22... f6 {[%clk 0:01:38.1]} 23. Rxe1 {[%clk 0:01:04.4]} 23... Nxb5 {[%clk
0:01:34.9]} 24. axb5 {[%clk 0:01:04.3]} 24... Bxb5 {[%clk 0:01:35.1]} 25. Qd1
{[%clk 0:00:51.7]} 25... Qc8 {[%clk 0:01:32.5]} 26. Re3 {[%clk 0:00:49.3]} 26...
h5 {[%clk 0:01:29.3]} 27. h3 {[%clk 0:00:47.4]} 27... Rg8 {[%clk 0:01:18.9]} 28.
hxg4 {[%clk 0:00:44.6]} 28... hxg4 {[%clk 0:01:19.1]} 29. Rg3 {[%clk 0:00:40.8]}
29... Kf7 {[%clk 0:01:09.6]} 30. Bxb5 {[%clk 0:00:30.5]} 30... Rxb5 {[%clk
0:01:09.5]} 31. f4 {[%clk 0:00:30]} 31... gxf3 {[%clk 0:01:04.8]} 32. Qxf3
{[%clk 0:00:30]} 32... Rxg3 {[%clk 0:01:04.1]} 33. Qxg3 {[%clk 0:00:30.3]} 33...
Rb8 {[%clk 0:01:01.7]} 34. Qh4 {[%clk 0:00:25.5]} 34... Qg8 {[%clk 0:00:56.4]}
35. Qh3 {[%clk 0:00:24.2]} 35... Qg5 {[%clk 0:00:53.7]} 36. Qh7+ {[%clk
0:00:22.3]} 36... Qg7 {[%clk 0:00:52.5]} 37. Qh3 {[%clk 0:00:20.6]} 37... Ra8
{[%clk 0:00:49]} 38. Qe6+ {[%clk 0:00:19.9]} 38... Kf8 {[%clk 0:00:49]} 39. Kf2
{[%clk 0:00:20.6]} 39... Qf7 {[%clk 0:00:48.1]} 40. Qf5 {[%clk 0:00:20.4]} 40...
Ke8 {[%clk 0:00:46.8]} 41. Qg4 {[%clk 0:00:15]} 41... Kd8 {[%clk 0:00:45.3]} 42.
Qe2 {[%clk 0:00:14.3]} 42... Qe8 {[%clk 0:00:41.2]} 43. Qg4 {[%clk 0:00:13.8]}
43... Kc7 {[%clk 0:00:40.5]} 44. Qe6 {[%clk 0:00:13.7]} 44... Qd7 {[%clk
0:00:40.3]} 45. Qf7 {[%clk 0:00:14]} 45... Rh8 {[%clk 0:00:34.2]} 46. Qg7 {[%clk
0:00:14]} 46... Rh4 {[%clk 0:00:33.1]} 47. Qg8 {[%clk 0:00:14.3]} 47... Rxe4
{[%clk 0:00:31.5]} 48. Qa8 {[%clk 0:00:10.2]} 48... Rf4+ {[%clk 0:00:19.7]} 49.
Kg1 {[%clk 0:00:10.2]} 49... Ra4 {[%clk 0:00:20.2]} 50. Ba5+ {[%clk 0:00:09.7]}
50... Rxa5 {[%clk 0:00:20.6]} 51. Qxa5+ {[%clk 0:00:10.6]} 51... Kb7 {[%clk
0:00:21.1]} 52. Qc3 {[%clk 0:00:10.6]} 52... Qb5 {[%clk 0:00:19.4]} 53. Qd2
{[%clk 0:00:08.6]} 53... Qc4 {[%clk 0:00:18.6]} 54. Kf2 {[%clk 0:00:08.2]} 54...
Kb6 {[%clk 0:00:17.9]} 55. Ke3 {[%clk 0:00:08.3]} 55... Kb5 {[%clk 0:00:17.4]}
56. g3 {[%clk 0:00:06.7]} 56... f5 {[%clk 0:00:17.2]} 57. Kf2 {[%clk 0:00:05.4]}
57... Qd4+ {[%clk 0:00:13.6]} 58. Qe3 {[%clk 0:00:03.6]} 58... Kc4 {[%clk
0:00:12.1]} 59. Kf3 {[%clk 0:00:02.7]} 59... Qxe3+ {[%clk 0:00:11.5]} 60. Kxe3
{[%clk 0:00:03.6]} 60... Kxd5 {[%clk 0:00:12.1]} 61. Kf4 {[%clk 0:00:03.9]}
61... e6 {[%clk 0:00:12.4]} 0-1

[Event "*** SCC Grand Prix: Titled Tuesday Blitz"]
[Site "Chess.com"]
[Date "2020.06.09"]
[Round "2"]
[White "bugsbunny444"]
[Black "Joshukid"]
[Result "1-0"]
[WhiteElo "2492"]
[BlackElo "2704"]
[TimeControl "180+1"]
[EndTime "9:19:26 PDT"]
[Termination "bugsbunny444 won by resignation"]

1. Nf3 {[%clk 0:03:00.9]} 1... d5 {[%clk 0:02:53.4]} 2. c4 {[%clk 0:03:00.4]}
2... d4 {[%clk 0:02:52]} 3. b4 {[%clk 0:02:59.9]} 3... c5 {[%clk 0:02:49]} 4. g3
{[%clk 0:02:59.6]} 4... Nc6 {[%clk 0:02:46.9]} 5. b5 {[%clk 0:02:59]} 5... Nb8
{[%clk 0:02:45.9]} 6. Bg2 {[%clk 0:02:59]} 6... g6 {[%clk 0:02:40.6]} 7. O-O
{[%clk 0:02:57.4]} 7... a6 {[%clk 0:02:40.8]} 8. Qb3 {[%clk 0:02:28.7]} 8... a5
{[%clk 0:02:32.6]} 9. d3 {[%clk 0:02:12]} 9... Bg7 {[%clk 0:02:27.7]} 10. Re1
{[%clk 0:02:08.1]} 10... Nh6 {[%clk 0:02:17]} 11. a4 {[%clk 0:02:03.8]} 11...
O-O {[%clk 0:02:14.5]} 12. Ra2 {[%clk 0:01:59.4]} 12... Nd7 {[%clk 0:02:08.7]}
13. e3 {[%clk 0:01:57.6]} 13... dxe3 {[%clk 0:01:58.4]} 14. Bxe3 {[%clk
0:01:46.9]} 14... Nf5 {[%clk 0:01:50.5]} 15. Nc3 {[%clk 0:01:44.2]} 15... Nd4
{[%clk 0:01:33.4]} 16. Bxd4 {[%clk 0:01:44]} 16... cxd4 {[%clk 0:01:34.3]} 17.
Nd5 {[%clk 0:01:09.7]} 17... e6 {[%clk 0:01:31.9]} 18. Nf4 {[%clk 0:01:09.9]}
18... Rb8 {[%clk 0:01:24.3]} 19. Qa3 {[%clk 0:00:59.9]} 19... b6 {[%clk
0:01:16.4]} 20. Qd6 {[%clk 0:00:56.2]} 20... Bb7 {[%clk 0:01:11]} 21. Nxd4
{[%clk 0:00:39.6]} 21... Bxd4 {[%clk 0:00:54.9]} 22. Qxd4 {[%clk 0:00:34]} 22...
e5 {[%clk 0:00:55.4]} 23. Rxe5 {[%clk 0:00:29.6]} 23... Nxe5 {[%clk 0:00:56.3]}
24. Qxe5 {[%clk 0:00:24.7]} 24... Re8 {[%clk 0:00:56.5]} 25. Qa1 {[%clk
0:00:21.6]} 25... Bxg2 {[%clk 0:00:38.1]} 26. Kxg2 {[%clk 0:00:22.5]} 26... f6
{[%clk 0:00:37.2]} 27. Nd5 {[%clk 0:00:19.1]} 27... Kf7 {[%clk 0:00:37.1]} 28.
f4 {[%clk 0:00:14.4]} 28... Qd6 {[%clk 0:00:36]} 29. Rf2 {[%clk 0:00:13.9]}
29... Rbd8 {[%clk 0:00:30.8]} 30. h4 {[%clk 0:00:13.5]} 30... h6 {[%clk
0:00:29.9]} 31. Qd4 {[%clk 0:00:11.3]} 31... Rd7 {[%clk 0:00:26.1]} 32. h5
{[%clk 0:00:05.9]} 32... gxh5 {[%clk 0:00:23.5]} 33. Rf3 {[%clk 0:00:04.1]}
33... Qe6 {[%clk 0:00:19.7]} 34. Rf2 {[%clk 0:00:03.8]} 34... h4 {[%clk
0:00:16.8]} 35. gxh4 {[%clk 0:00:03.7]} 35... Qg4+ {[%clk 0:00:16.9]} 36. Kh2
{[%clk 0:00:02.4]} 36... Qxh4+ {[%clk 0:00:17.3]} 37. Kg2 {[%clk 0:00:02.4]}
37... Qg4+ {[%clk 0:00:13.8]} 38. Kh2 {[%clk 0:00:02.7]} 38... Re1 {[%clk
0:00:13.2]} 39. Qxf6+ {[%clk 0:00:02.2]} 39... Kg8 {[%clk 0:00:10.3]} 40. Rg2
{[%clk 0:00:02.3]} 40... Qxg2+ {[%clk 0:00:09.1]} 41. Kxg2 {[%clk 0:00:03.2]}
41... Rg7+ {[%clk 0:00:06.6]} 42. Kf3 {[%clk 0:00:03.4]} 42... Reg1 {[%clk
0:00:07.3]} 43. Qd8+ {[%clk 0:00:02.9]} 43... Kh7 {[%clk 0:00:07.3]} 44. Nf6+
{[%clk 0:00:03.4]} 44... Kg6 {[%clk 0:00:07.4]} 45. Ng4 {[%clk 0:00:03.4]} 45...
Kh7 {[%clk 0:00:05.7]} 46. Nf6+ {[%clk 0:00:03.2]} 46... Kg6 {[%clk 0:00:05.7]}
47. Nd5 {[%clk 0:00:03.3]} 47... Kh7 {[%clk 0:00:05.9]} 48. Ke4 {[%clk
0:00:03.5]} 48... h5 {[%clk 0:00:06]} 49. Kd4 {[%clk 0:00:03.9]} 49... h4 {[%clk
0:00:06.4]} 50. Qxh4+ {[%clk 0:00:03.3]} 50... Kg8 {[%clk 0:00:07]} 51. f5
{[%clk 0:00:03.5]} 51... R1g4+ {[%clk 0:00:06.9]} 52. Qxg4 {[%clk 0:00:03.8]}
52... Rxg4+ {[%clk 0:00:07.8]} 53. Ke5 {[%clk 0:00:04.7]} 53... Kf7 {[%clk
0:00:07.2]} 54. Nxb6 {[%clk 0:00:04.9]} 54... Rh4 {[%clk 0:00:06.1]} 55. c5
{[%clk 0:00:05.2]} 55... Ke7 {[%clk 0:00:04.4]} 56. c6 {[%clk 0:00:05.5]} 56...
Rh5 {[%clk 0:00:04.1]} 57. c7 {[%clk 0:00:05.6]} 1-0